bitfinex-derivatives/quotes_SOLF0:USTF0_20250924
["timestamp","ask_amount","ask_price","bid_price","bid_amount"]
[1758748382190,3.49982796,212.22,212.2,113.98]
[1758748382393,2.18844123,212.23,212.2,113.98]
[1758748383394,4.238,212.26,212.2,113.98]
[1758748383693,2.18844123,212.24,212.2,113.98]
[1758748383892,3.50016019,212.23,212.2,113.98]
[1758748384193,2.18844123,212.24,212.2,113.98]
[1758748384489,3.50043223,212.23,212.2,113.98]
[1758748384689,3.50043223,212.22,212.2,113.98]
[1758748384891,2.18844123,212.24,212.2,113.98]
[1758748385099,3.50043012,212.23,212.2,113.98]
[1758748385288,3.50043012,212.22,212.2,113.98]
[1758748385489,2.18844123,212.24,212.2,113.98]
[1758748385691,3.50042718,212.23,212.2,113.98]
[1758748385890,3.50042718,212.22,212.2,113.98]
[1758748386088,2.18844123,212.24,212.2,113.98]
[1758748386389,3.50042721,212.23,212.2,113.98]
[1758748386589,2.18844123,212.24,212.2,113.98]
[1758748386786,3.50042583,212.23,212.2,113.98]
[1758748386989,6.42644123,212.26,212.2,118.2189]
[1758748387188,3.5005196,212.25,212.2,118.2189]
[1758748387388,3.5005196,212.24,212.2,118.2189]
[1758748387589,3.5005196,212.23,212.2,118.2189]
[1758748387790,6.42644123,212.26,212.2,118.2189]
[1758748387994,11.29055365,212.25,212.2,118.2189]
[1758748388192,3.50055365,212.24,212.2,118.2189]
[1758748388392,3.50055365,212.23,212.2,118.2189]
[1758748388587,7.79,212.25,212.2,118.2189]
[1758748388789,3.50058417,212.24,212.2,118.2189]
[1758748388991,3.50058417,212.23,212.2,118.2189]
[1758748389292,7.79,212.25,212.2,118.2189]
[1758748389488,3.50103539,212.24,212.2,113.98]
[1758748389790,2.18844123,212.3,212.22,2.18844123]
[1758748390094,3.50192418,212.29,212.22,2.18844123]
[1758748390296,3.50192418,212.28,212.24,4.2381]
[1758748390493,3.50192418,212.27,212.24,118.2381]
[1758748390693,3.50192418,212.26,212.24,118.2381]
[1758748390898,2.18844123,212.3,212.24,118.2381]
[1758748391092,3.49898748,212.29,212.24,118.2381]
[1758748391294,3.49898748,212.28,212.24,118.2381]
[1758748391489,3.49898748,212.27,212.24,118.2381]
[1758748391696,3.49898748,212.26,212.24,118.2381]
[1758748391997,2.18844123,212.3,212.25,4.2379]
[1758748392198,3.49899211,212.29,212.25,4.2379]
[1758748392394,3.49899211,212.28,212.25,4.2379]
[1758748392591,3.49899211,212.27,212.25,4.2379]
[1758748392786,3.49899211,212.26,212.25,4.2379]
[1758748392986,3.49899211,212.29,212.25,4.2379]
[1758748393194,3.49899211,212.28,212.25,4.2379]
[1758748393393,3.49899211,212.27,212.25,4.2379]
[1758748393695,3.49899211,212.26,212.25,4.2379]
[1758748394090,7.79,212.29,212.25,4.2379]
[1758748394294,3.49899211,212.28,212.25,4.2379]
[1758748394498,3.49899211,212.27,212.25,4.2379]
[1758748394698,3.49899211,212.26,212.25,4.2379]
[1758748395095,3.49899211,212.28,212.25,4.2379]
[1758748395294,3.49899211,212.27,212.25,4.2379]
[1758748395494,3.49899211,212.26,212.25,4.2379]
[1758748396200,7.79,212.29,212.25,4.2379]
[1758748396400,3.49942431,212.28,212.25,4.2379]
[1758748396600,3.49942431,212.27,212.25,4.2379]
[1758748396799,7.79,212.29,212.25,4.2379]
[1758748397098,3.49942503,212.28,212.25,4.2379]
[1758748397294,3.49942503,212.27,212.25,4.2379]
[1758748397491,7.79,212.29,212.25,4.2379]
[1758748397695,3.5071104,212.28,212.25,4.2379]
[1758748397894,3.5071104,212.27,212.25,4.2379]
[1758748398091,91.57919706,212.32,212.26,4.2377]
[1758748398295,3.5068223,212.31,212.26,4.2377]
[1758748398497,3.5068223,212.3,212.25,2.18844123]
[1758748398701,3.5068223,212.29,212.25,2.18844123]
[1758748398902,3.50692002,212.28,212.25,2.18844123]
[1758748399105,81.60075583,212.32,212.25,2.18844123]
[1758748399405,3.50678737,212.31,212.25,2.18844123]
[1758748399604,3.50678737,212.3,212.25,2.18844123]
[1758748399800,81.60075583,212.32,212.25,2.18844123]
[1758748400001,3.50564574,212.31,212.25,2.18844123]
[1758748400205,3.50564574,212.3,212.28,4.2373]
[1758748400505,89.39075583,212.32,212.28,118.2373]
[1758748400698,3.50512505,212.31,212.28,118.2373]
[1758748401004,3.50512505,212.3,212.28,118.2373]
[1758748401205,89.39075583,212.32,212.28,118.2373]
[1758748401505,3.50462759,212.31,212.29,4.2371]
[1758748401805,7.79,212.36,212.29,2.18844123]
[1758748402012,3.50502926,212.35,212.32,4.2365]
[1758748402198,3.50502926,212.34,212.32,4.2365]
[1758748402399,7.79,212.36,212.28,114.0]
[1758748402600,7.79,212.34,212.3,4.237]
[1758748412508,2.18844123,212.35,212.3,4.237]
[1758748412710,7.43,212.34,212.3,4.237]
[1758748413105,2.18844123,212.35,212.3,4.237]
[1758748413602,7.43,212.34,212.3,4.237]
[1758748413805,2.18844123,212.35,212.3,4.237]
[1758748414407,7.43,212.34,212.3,4.237]
[1758748414607,2.18844123,212.35,212.3,4.237]
[1758748414805,7.43,212.34,212.3,4.237]
[1758748415010,2.18844123,212.35,212.3,4.237]
[1758748415209,7.43,212.34,212.3,4.237]
[1758748415608,2.18844123,212.35,212.3,4.237]
[1758748415811,7.43,212.34,212.3,4.237]
[1758748416010,7.43,212.34,212.31,4.2367]
[1758748417111,2.18844123,212.35,212.31,4.2367]
[1758748417309,7.43,212.34,212.31,4.2367]
[1758748417810,2.18844123,212.35,212.31,4.2367]
[1758748418110,7.43,212.34,212.31,4.2367]
[1758748418305,2.18844123,212.35,212.31,4.2367]
[1758748418505,7.43,212.34,212.31,4.2367]
[1758748419300,2.18844123,212.35,212.31,4.2367]
[1758748419705,7.43,212.34,212.31,4.2367]
[1758748419903,2.18844123,212.35,212.31,4.2367]
[1758748420512,7.43,212.34,212.31,4.2367]
[1758748420913,2.18844123,212.35,212.31,4.2367]
[1758748421316,7.43,212.34,212.31,4.2367]
[1758748421516,2.18844123,212.35,212.31,4.2367]
[1758748421914,7.43,212.34,212.31,4.2367]
[1758748422322,2.18844123,212.35,212.31,4.2367]
[1758748422521,7.43,212.34,212.31,4.2367]
[1758748422723,2.18844123,212.35,212.31,4.2367]
[1758748422909,7.43,212.34,212.31,4.2367]
[1758748423420,2.18844123,212.35,212.31,4.2367]
[1758748423613,7.43,212.34,212.31,4.2367]
[1758748423820,2.18844123,212.35,212.31,4.2367]
[1758748424216,7.43,212.34,212.31,4.2367]
[1758748424616,2.18844123,212.35,212.31,4.2367]
[1758748425018,7.43,212.39,212.31,65.9063]
[1758748425219,7.43,212.39,212.31,65.9062]
[1758748425618,7.43,212.39,212.32,2.18844123]
[1758748425818,7.43,212.39,212.33,113.94]
[1758748426021,7.43,212.39,212.37,4.2355]
[1758748426214,4.2341,212.45,212.33,179.8386]
[1758748426420,9.61844123,212.42,212.33,179.8386]
[1758748426622,3.49238914,212.41,212.33,179.8386]
[1758748427224,3.49238914,212.41,212.38,4.2353]
[1758748427425,10.92238914,212.41,212.38,4.2353]
[1758748427627,7.43,212.41,212.34,2.18844123]
[1758748428828,7.43,212.41,212.36,2.18844123]
[1758748429329,7.43,212.41,212.38,4.2353]
[1758748430930,2.18844123,212.44,212.38,4.2353]
[1758748431124,3.49016789,212.43,212.38,4.2353]
[1758748431324,2.18844123,212.44,212.38,4.2353]
[1758748431519,7.43,212.42,212.38,4.2353]
[1758748431723,2.18844123,212.44,212.38,4.2353]
[1758748431923,7.43,212.42,212.38,4.2353]
[1758748432126,7.43,212.43,212.38,4.2353]
[1758748432321,7.43,212.41,212.38,4.2353]
[1758748432726,2.18844123,212.42,212.36,4.2358]
[1758748432927,7.43,212.41,212.36,4.2358]
[1758748433226,7.43,212.41,212.33,116.12844123]
[1758748434129,3.49078926,212.4,212.33,116.12844123]
[1758748434325,7.41,212.41,212.37,4.2355]
[1758748434519,7.41,212.39,212.37,4.2355]
[1758748437132,7.41,212.43,212.37,4.2355]
[1758748437332,3.49283233,212.42,212.37,4.2355]
[1758748437521,7.41,212.4,212.37,4.2355]
[1758748437721,7.41,212.43,212.37,4.2355]
[1758748437940,7.41,212.41,212.37,4.2355]
[1758748438133,7.41,212.39,212.37,4.2355]
[1758748438429,4.2343,212.44,212.37,4.2355]
[1758748438630,10.90401855,212.43,212.37,4.2355]
[1758748438828,7.41,212.41,212.37,4.2355]
[1758748439024,7.41,212.39,212.35,4.236]
[1758748439230,3.41338771,212.45,212.35,4.236]
[1758748439431,10.90484127,212.44,212.35,4.236]
[1758748439734,7.41,212.42,212.35,4.236]
[1758748439934,7.41,212.4,212.35,4.236]
[1758748440133,3.49484127,212.39,212.36,4.2357]
[1758748440333,7.74,212.44,212.33,113.94]
[1758748440530,3.49589857,212.43,212.33,113.94]
[1758748440729,7.74,212.41,212.33,113.94]
[1758748441027,3.49589857,212.4,212.33,113.94]
[1758748441227,7.74,212.44,212.37,4.2355]
[1758748441424,7.74,212.42,212.37,4.2355]
[1758748441631,3.49670465,212.41,212.37,4.2355]
[1758748441828,7.74,212.39,212.37,4.2355]
[1758748444736,7.74,212.44,212.37,4.2355]
[1758748444937,7.74,212.42,212.37,4.2355]
[1758748445133,11.23875236,212.41,212.39,4.2352]
[1758748445432,11.23875236,212.4,212.34,13.87627006]
[1758748445640,7.74,212.4,212.33,113.94]
[1758748446232,7.74,212.4,212.37,4.2356]
[1758748446442,3.41338771,212.47,212.33,113.94]
[1758748446732,7.74,212.45,212.39,4.2351]
[1758748446939,3.49930826,212.44,212.39,4.2351]
[1758748447139,7.74,212.42,212.39,4.2351]
[1758748447340,7.74,212.4,212.39,4.2351]
[1758748447637,11.23930826,212.4,212.39,4.2351]
[1758748450036,3.49930826,212.4,212.39,4.2351]
[1758748450340,7.74,212.43,212.4,4.2349]
[1758748450640,7.74,212.41,212.4,4.2349]
[1758748450836,11.2390111,212.41,212.4,4.2349]
[1758748451336,3.4990111,212.41,212.4,4.2349]
[1758748451541,7.74,212.44,212.4,4.2349]
[1758748451739,7.74,212.42,212.4,4.2349]
[1758748451941,3.4990111,212.41,212.4,4.2349]
[1758748453739,7.74,212.45,212.4,4.2349]
[1758748453944,7.74,212.43,212.41,4.2347]
[1758748454138,11.2390111,212.42,212.41,4.2347]
[1758748454944,7.74,212.41,212.39,4.2351]
[1758748456446,7.74,212.46,212.4,4.2349]
[1758748456746,7.74,212.44,212.4,4.2349]
[1758748456942,3.49912787,212.43,212.4,4.2349]
[1758748457141,4.2338,212.47,212.4,4.2349]
[1758748457142,7.74,212.41,212.4,4.2349]
[1758748461649,7.74,212.46,212.4,4.2349]
[1758748461848,7.74,212.44,212.4,4.2349]
[1758748462045,11.27181674,212.43,212.4,4.2349]
[1758748462244,11.27181674,212.42,212.4,4.2349]
[1758748462444,7.74,212.42,212.4,4.2349]
[1758748464355,8.02,212.46,212.41,4.2348]
[1758748464553,3.5363491,212.45,212.41,4.2348]
[1758748464747,3.5363491,212.44,212.41,4.2348]
[1758748464953,8.02,212.42,212.41,4.2348]
[1758748465153,11.5563491,212.42,212.41,4.2348]
[1758748469164,8.02,212.42,212.41,4.2348]
[1758748473366,5.25399963,212.5,212.42,4.2346]
[1758748473367,8.02,212.47,212.42,4.2346]
[1758748473563,8.02,212.45,212.42,4.2346]
[1758748473768,11.55874731,212.44,212.42,4.2346]
[1758748474066,11.55874731,212.43,212.42,4.2346]
[1758748474564,11.55874731,212.43,212.4,4.235]
[1758748474765,8.02,212.5,212.4,4.235]
[1758748474965,4.2338,212.47,212.4,4.235]
[1758748475165,11.5584494,212.46,212.41,4.2348]
[1758748475365,8.02,212.44,212.41,4.2348]
[1758748475565,8.02,212.42,212.41,4.2348]
[1758748476568,8.02,212.49,212.39,113.9]
[1758748476770,3.53794972,212.48,212.39,113.9]
[1758748477069,8.02,212.46,212.39,113.9]
[1758748477268,3.53794972,212.45,212.39,113.9]
[1758748477468,8.02,212.43,212.39,113.9]
[1758748477669,4.2338,212.47,212.41,4.2348]
[1758748477870,11.55781041,212.46,212.41,4.2348]
[1758748478066,3.53781041,212.45,212.41,4.2348]
[1758748478371,3.53781041,212.44,212.41,4.2348]
[1758748478570,4.2338,212.47,212.41,4.2348]
[1758748478571,8.02,212.42,212.41,4.2348]
[1758748479668,4.234,212.46,212.39,118.1153]
[1758748479869,3.53795502,212.45,212.39,118.1153]
[1758748480073,3.53795502,212.44,212.39,118.1153]
[1758748480274,3.53795502,212.43,212.39,118.1153]
[1758748480474,8.02,212.41,212.39,118.1153]
[1758748486280,8.02,212.41,212.39,118.0853]
[1758748488376,4.234,212.46,212.39,118.0853]
[1758748488578,8.02,212.44,212.39,118.0853]
[1758748488777,8.02,212.42,212.39,118.0853]
[1758748488978,3.5456515,212.41,212.39,118.0853]
[1758748489179,4.234,212.46,212.39,118.0853]
[1758748489379,8.02,212.43,212.39,118.0853]
[1758748489579,11.5656515,212.42,212.39,118.0853]
[1758748489780,3.5456515,212.41,212.39,118.0853]
[1758748490080,8.02,212.42,212.39,118.0853]
[1758748490284,3.54603381,212.41,212.39,118.0853]
[1758748490484,8.02,212.42,212.39,118.0853]
[1758748490685,3.54625704,212.41,212.39,118.0853]
[1758748490984,8.02,212.42,212.4,4.235]
[1758748491184,3.54625704,212.41,212.4,4.235]
[1758748492184,8.02,212.42,212.4,4.235]
[1758748493186,3.54671094,212.41,212.4,4.235]
[1758748497879,11.01671094,212.41,212.4,4.235]
[1758748498186,3.54671094,212.41,212.33,13.98915244]
[1758748498387,3.54671094,212.41,212.28,342.64]
[1758748498388,3.54671094,212.4,212.34,113.86]
[1758748498586,3.54671094,212.39,212.34,113.86]
[1758748498887,3.54671094,212.38,212.34,113.86]
[1758748499082,7.47,212.41,212.34,113.86]
[1758748499285,7.47,212.39,212.37,4.2356]
[1758748500083,2.18447392,212.4,212.37,4.2356]
[1758748500289,7.6,212.38,212.35,4.236]
[1758748500589,2.18447392,212.4,212.34,113.86]
[1758748500791,3.54767104,212.39,212.34,113.86]
[1758748500989,2.18447392,212.4,212.34,113.86]
[1758748501190,3.54733906,212.39,212.37,4.2356]
[1758748501491,9.78447392,212.4,212.37,4.2356]
[1758748501690,3.54735708,212.39,212.37,4.2356]
[1758748501883,9.78447392,212.4,212.37,4.2356]
[1758748502083,3.54735655,212.39,212.37,4.2356]
[1758748502278,7.6,212.46,212.35,65.8951]
[1758748502485,9.78447392,212.44,212.35,65.8951]
[1758748502689,3.54731172,212.43,212.35,65.8951]
[1758748502990,3.54731172,212.42,212.35,65.8951]
[1758748503190,3.54731172,212.41,212.35,65.8951]
[1758748503484,3.54731172,212.4,212.35,65.8951]
[1758748503690,9.78447392,212.44,212.35,65.8951]
[1758748503891,3.54752179,212.43,212.35,65.8951]
[1758748504088,3.54752179,212.42,212.35,65.8951]
[1758748504287,3.54752179,212.41,212.35,65.8951]
[1758748504488,3.54752179,212.4,212.35,65.8951]
[1758748504689,9.78447392,212.44,212.41,4.2348]
[1758748504888,7.6,212.42,212.41,4.2348]
[1758748505092,11.14909577,212.42,212.41,4.2348]
[1758748507895,3.54909577,212.42,212.41,4.2348]
[1758748508490,7.6,212.48,212.45,4.2339]
[1758748508790,7.6,212.49,212.45,4.2339]
[1758748509193,2.18447392,212.5,212.45,4.2339]
[1758748509994,7.6,212.49,212.45,4.2339]
[1758748510196,2.18447392,212.5,212.45,4.2339]
[1758748510698,7.6,212.49,212.45,4.2339]
[1758748511393,2.18447392,212.5,212.45,4.2339]
[1758748511797,2.18447392,212.48,212.45,4.2339]
[1758748512102,7.6,212.47,212.45,4.2339]
[1758748512302,7.6,212.49,212.47,4.2336]
[1758748513300,2.18447392,212.5,212.47,4.2336]
[1758748513802,7.6,212.49,212.47,4.2336]
[1758748515904,2.18447392,212.48,212.47,4.2336]
[1758748516106,2.18447392,212.48,212.45,4.234]
[1758748516305,9.78447392,212.49,212.45,4.234]
[1758748518402,2.18447392,212.49,212.45,4.234]
[1758748518603,2.18447392,212.47,212.43,118.0944]
[1758748518805,7.6,212.46,212.43,118.0944]
[1758748520205,9.48679963,212.52,212.43,118.0944]
[1758748520408,7.6,212.5,212.43,118.0944]
[1758748520604,3.53086748,212.49,212.43,118.0944]
[1758748520804,7.6,212.47,212.43,118.0944]
[1758748520998,3.53086748,212.46,212.43,118.0944]
[1758748521307,3.53086748,212.45,212.43,118.0944]
[1758748521507,7.6,212.47,212.43,118.0944]
[1758748521707,3.53063922,212.46,212.43,118.0944]
[1758748521904,3.53063922,212.45,212.43,118.0944]
[1758748522104,7.6,212.47,212.44,4.2341]
[1758748522308,7.6,212.45,212.33,22.91585144]
[1758748522508,3.53051912,212.44,212.38,113.84]
[1758748522709,7.6,212.45,212.38,113.84]
[1758748522907,3.53052024,212.44,212.38,113.84]
[1758748523102,3.53052024,212.43,212.38,113.84]
[1758748523309,7.6,212.49,212.41,4.2348]
[1758748523508,7.6,212.47,212.41,4.2348]
[1758748523710,7.6,212.45,212.41,4.2348]
[1758748523906,11.47052256,212.44,212.41,4.2348]
[1758748524205,11.47052256,212.43,212.41,4.2348]
[1758748524409,7.94,212.43,212.41,4.2348]
[1758748525510,4.2334,212.49,212.41,4.2348]
[1758748525710,11.47048803,212.48,212.41,4.2348]
[1758748525912,7.94,212.46,212.41,4.2348]
[1758748526209,11.47048803,212.45,212.41,4.2348]
[1758748526509,11.47048803,212.44,212.41,4.2348]
[1758748526698,3.53048803,212.43,212.41,4.2348]
[1758748526900,3.53109579,212.42,212.41,4.2348]
[1758748529913,11.47109579,212.42,212.39,4.2352]
[1758748530113,3.53109579,212.41,212.39,4.2352]
[1758748530316,3.53109579,212.4,212.39,4.2352]
[1758748531215,3.53109579,212.4,212.39,118.0752]
[1758748531916,11.47109579,212.4,212.39,113.84]
[1758748532316,3.53109579,212.4,212.39,113.84]
[1758748533014,3.53109579,212.4,212.37,113.84]
[1758748533219,11.47109579,212.39,212.37,113.84]
[1758748533514,4.234,212.46,212.37,113.84]
[1758748533713,3.53072222,212.45,212.37,113.84]
[1758748534019,7.94,212.43,212.37,113.84]
[1758748534314,7.94,212.41,212.37,118.0756]
[1758748534514,3.53072222,212.4,212.37,118.0756]
[1758748534715,3.53072222,212.39,212.37,118.0756]
[1758748534908,4.234,212.46,212.37,118.0756]
[1758748535105,4.2343,212.44,212.37,118.0756]
[1758748535308,7.94,212.42,212.37,118.0756]
[1758748535508,3.53046038,212.43,212.37,118.0756]
[1758748535509,7.94,212.4,212.37,118.0756]
[1758748535712,3.53046038,212.39,212.37,118.0756]
[1758748535917,7.94,212.4,212.37,118.0756]
[1758748536119,3.53017285,212.39,212.37,118.0756]
[1758748536319,7.94,212.4,212.37,118.0756]
[1758748536519,4.2343,212.44,212.37,118.0756]
[1758748536520,3.52986615,212.39,212.37,118.0756]
[1758748536717,7.94,212.43,212.37,118.0756]
[1758748536920,3.52986615,212.42,212.37,118.0756]
[1758748537122,4.2343,212.44,212.37,118.0756]
[1758748537123,7.94,212.4,212.37,118.0756]
[1758748537417,11.46986615,212.39,212.37,118.0756]
[1758748537618,11.46976557,212.38,212.37,118.0756]
[1758748538817,11.46976557,212.38,212.37,113.84]
[1758748541819,3.52976557,212.38,212.37,113.84]
[1758748544318,11.46976557,212.38,212.37,113.84]
[1758748544527,11.46976557,212.38,212.33,113.84]
[1758748544828,7.94,212.34,212.33,113.84]
[1758748545030,3.52976557,212.34,212.33,113.84]
[1758748545326,11.46976557,212.34,212.33,113.84]
[1758748547628,11.46976557,212.34,212.28,342.64]
[1758748547825,7.94,212.32,212.29,113.86]
[1758748548729,4.2366,212.33,212.29,113.86]
[1758748548924,3.51540769,212.32,212.29,113.86]
[1758748549124,7.94,212.36,212.29,113.86]
[1758748549422,4.2368,212.32,212.25,4.238]
[1758748549628,7.94,212.31,212.25,118.098]
[1758748551930,12.177,212.31,212.25,118.098]
[1758748552525,12.177,212.31,212.25,113.86]
[1758748554026,4.2372,212.3,212.25,113.86]
[1758748554221,7.29,212.29,212.25,113.86]
[1758748555425,7.29,212.28,212.25,113.86]
[1758748555727,65.8955,212.35,212.25,113.86]
[1758748555728,65.902,212.33,212.25,113.86]
[1758748556030,3.50710739,212.32,212.25,113.86]
[1758748556231,3.50710739,212.31,212.25,113.86]
[1758748556530,65.902,212.33,212.25,113.86]
[1758748556531,7.29,212.29,212.25,113.86]
[1758748556729,7.29,212.31,212.21,4.2388]
[1758748556927,7.29,212.29,212.21,4.2388]
[1758748557429,7.29,212.29,212.16,342.68]
[1758748557633,7.29,212.27,212.17,113.9]
[1758748557928,65.9169,212.28,212.17,113.9]
[1758748558124,7.29,212.27,212.17,113.9]
[1758748558326,65.9169,212.28,212.17,113.9]
[1758748558528,7.29,212.27,212.17,113.9]
[1758748558830,65.9169,212.28,212.17,113.9]
[1758748559030,7.29,212.27,212.17,113.9]
[1758748559228,4.2384,212.24,212.17,113.9]
[1758748564135,7.58,212.26,212.14,4.2402]
[1758748564336,7.58,212.24,212.17,113.94]
[1758748564737,11.07861264,212.23,212.17,113.94]
[1758748565034,7.58,212.23,212.17,113.94]
[1758748565238,4.2388,212.22,212.17,113.94]
[1758748565537,7.58,212.21,212.17,113.94]
[1758748568234,4.2388,212.22,212.17,113.94]
[1758748568437,11.8188,212.22,212.17,113.94]
[1758748571436,7.58,212.22,212.17,113.94]
[1758748571638,4.2383,212.24,212.17,113.94]
[1758748571836,3.49574742,212.23,212.17,113.94]
[1758748572036,11.07574742,212.22,212.17,113.94]
[1758748572233,7.58,212.22,212.17,113.94]
[1758748573145,3.49643746,212.21,212.17,113.94]
[1758748573346,7.58,212.22,212.17,113.94]
[1758748573546,3.49605507,212.21,212.17,113.94]
[1758748573751,7.58,212.22,212.17,113.94]
[1758748573952,3.49605507,212.21,212.17,113.94]
[1758748574252,7.58,212.22,212.17,113.94]
[1758748574749,3.49642303,212.21,212.17,113.94]
[1758748575052,11.8188,212.22,212.17,113.94]
[1758748575253,3.49642303,212.21,212.17,113.94]
[1758748575451,11.8188,212.22,212.17,113.94]
[1758748575653,3.49674642,212.21,212.17,113.94]
[1758748575848,11.8188,212.22,212.17,113.94]
[1758748576154,3.49674642,212.21,212.17,113.94]
[1758748576353,11.8188,212.22,212.17,113.94]
[1758748576652,3.49723909,212.21,212.17,113.94]
[1758748576853,11.8188,212.22,212.17,113.94]
[1758748577055,3.49723909,212.21,212.17,113.94]
[1758748577353,11.8188,212.22,212.17,113.94]
[1758748577553,3.49773883,212.21,212.17,113.94]
[1758748577754,11.8188,212.22,212.17,113.94]
[1758748577954,3.49870246,212.21,212.17,113.94]
[1758748578154,11.8188,212.22,212.17,113.94]
[1758748578355,3.49935253,212.21,212.17,113.94]
[1758748578551,11.8188,212.22,212.17,113.94]
[1758748578754,3.49935253,212.21,212.17,113.94]
[1758748578954,11.8188,212.22,212.17,113.94]
[1758748579153,3.49935253,212.21,212.17,113.94]
[1758748579354,11.8188,212.22,212.17,113.94]
[1758748579550,4.2391,212.2,212.17,113.94]
[1758748584152,4.2394,212.19,212.17,113.94]
[1758748585356,4.2394,212.19,212.13,4.2403]
[1758748585563,7.74646194,212.18,212.12,43.32]
[1758748585762,3.50686194,212.17,212.11,47.5608]
[1758748586266,3.50686194,212.16,212.11,47.5608]
[1758748586565,3.50782674,212.15,212.11,43.32]
[1758748586765,11.9199,212.16,212.11,43.32]
[1758748586966,3.50782573,212.15,212.11,43.32]
[1758748587262,11.9199,212.16,212.11,43.32]
[1758748587466,3.50894444,212.15,212.11,43.32]
[1758748587666,11.9199,212.16,212.11,43.32]
[1758748587867,3.50894444,212.15,212.11,43.32]
[1758748588166,11.9199,212.16,212.11,43.32]
[1758748588365,3.51050297,212.15,212.11,43.32]
[1758748588562,11.9199,212.16,212.11,43.32]
[1758748588763,3.5115352,212.15,212.11,43.32]
[1758748588963,11.9199,212.16,212.11,43.32]
[1758748589161,3.5115352,212.15,212.11,43.32]
[1758748589367,11.9199,212.16,212.11,43.32]
[1758748589561,11.19324144,212.15,212.07,4.2414]
[1758748589766,3.51324144,212.14,212.08,114.0]
[1758748589966,3.51324144,212.13,212.08,114.0]
[1758748590167,7.68,212.15,212.08,114.0]
[1758748590364,3.51286191,212.14,212.08,114.0]
[1758748590565,7.68,212.15,212.08,114.0]
[1758748590765,3.51286191,212.14,212.08,114.0]
[1758748590965,7.68,212.15,212.1,4.2409]
[1758748591170,3.5134149,212.14,212.1,4.2409]
[1758748591468,3.5134149,212.13,212.1,4.2409]
[1758748591670,7.68,212.15,212.1,4.2409]
[1758748591867,3.51441065,212.14,212.1,4.2409]
[1758748592065,3.51441065,212.13,212.1,4.2409]
[1758748592267,7.68,212.15,212.1,4.2409]
[1758748592570,3.51524379,212.14,212.1,4.2409]
[1758748592769,3.51524379,212.13,212.1,4.2409]
[1758748592970,11.9201,212.15,212.08,118.2413]
[1758748593172,3.51524379,212.14,212.08,118.2413]
[1758748593471,3.51524379,212.13,212.08,118.2413]
[1758748593665,3.51524379,212.12,212.08,118.2413]
[1758748593971,11.9201,212.15,212.08,118.2413]
[1758748594271,3.51635779,212.14,212.08,118.2413]
[1758748594471,3.51635779,212.13,212.08,118.2413]
[1758748594673,3.51635779,212.12,212.08,118.2413]
[1758748594971,11.9201,212.15,212.08,118.2413]
[1758748595272,3.51716137,212.14,212.09,4.2411]
[1758748595467,3.51716137,212.13,212.09,4.2411]
[1758748595667,3.51716137,212.12,212.09,4.2411]
[1758748595869,4.2401,212.15,212.09,4.2411]
[1758748596065,11.19814345,212.14,212.09,4.2411]
[1758748596264,3.51814345,212.13,212.09,4.2411]
[1758748596459,3.51814345,212.12,212.09,4.2411]
[1758748596671,7.68,212.14,212.09,4.2411]
[1758748596872,3.51935595,212.13,212.09,4.2411]
[1758748597167,3.51935595,212.12,212.09,4.2411]
[1758748597372,7.68,212.14,212.09,4.2411]